[Event "AZE-ch Men 2019"]
[Site "Baku"]
[Date "2019.01.24"]
[Round "9"]
[White "Ahadzade, Kanan"]
[Black "Ilyasli, Ughur"]
[Result "0-1"]
[ECO "E63"]
[WhiteElo "2019"]
[BlackElo "2148"]
[Annotator "NA"]
[PlyCount "118"]
[EventDate "2019.01.16"]
[EventType "swiss"]
[EventCountry "AZE"]
[SourceTitle "playchess.com"]
[Source "ChessBase"]
[SourceQuality "1"]
[TimeControl "40/5400+30:1800+30"]

1. d4 {[%emt 0:00:00]} Nf6 {[%emt 0:01:53]} 2. c4 {[%emt 0:00:28]} g6 {[%emt 0:00:13]} 3. Nf3 {[%emt 0:00:34]} Bg7 {[%emt 0:00:06]} 4. Nc3 {[%emt 0:00:03]} d6 {[%emt 0:00:05]} 5. g3 {[%emt 0:00:04]} O-O {[%emt 0:00:06]} 6. Bg2 {[%emt 0:00:02]} Nc6 {[%emt 0:00:09]} 7. O-O {[%emt 0:00:07]} a6 {[%emt 0:00:07]} 8. e4 {[%emt 0:00:15]} Rb8 {[%emt 0:00:15]} 9. a4 {[%emt 0:06:23]} Bg4 {[%emt 0:02:16]} 10. Be3 {[%emt 0:00:37]} Nd7 {[%emt 0:00:05] E63: King's Indian: Fianchetto: Panno Variation with 7...a6} 11. h3 {[%emt 0:10:47]} Bxf3 {[%emt 0:00:20]} 12. Bxf3 {[%emt 0:00:01]} e5 {[%emt 0:00:08]} 13. d5 {[%emt 0:00:42]} Nd4 {[%emt 0:00:06]} 14. Bg2 {[%emt 0:00:23]} c5 {[%emt 0:00:17]} 15. f4 {[%emt 0:03:47]} exf4 {[%emt 0:00:24]} 16. gxf4 {[%emt 0:00:59]} f5 $146 {[%emt 0:00:30]} ({Predecessor:} 16... b5 17. Ne2 Nxe2+ 18. Qxe2 bxc4 19. Qxc4 {0-1 (42) Carruana Fuentes,R (2055)-Fernandez Siles,L (2274) Mancha Real 2003}) 17. Kh2 {[%emt 0:05:18]} Nf6 {[%emt 0:16:14]} 18. Bxd4 {[%emt 0:13:15]} cxd4 {[%emt 0:00:11]} 19. Ne2 {[%emt 0:00:12]} Nxe4 {[%emt 0:00:35]} 20. Nxd4 {[%emt 0:00:48]} Bxd4 {[%emt 0:10:08]} 21. Qxd4 Qf6 22. Qxf6 {[%emt 0:04:34]} Nxf6 {[%emt 0:00:06]} 23. b4 {[%emt 0:01:33]} Rbc8 {[%emt 0:08:26]} 24. Rac1 {[%emt 0:02:45]} a5 {[%emt 0:02:05]} 25. c5 {[%emt 0:04:43]} axb4 {[%emt 0:10:35]} 26. c6 {[%emt 0:00:32]} bxc6 {[%emt 0:03:44]} 27. dxc6 {[%emt 0:00:24]} d5 {[%emt 0:01:54]} 28. Rfd1 {[%emt 0:07:30]} Rfd8 {[%emt 0:08:39]} 29. Bf1 {[%emt 0:06:13]} Ne4 {[%emt 0:12:59]} 30. Bb5 {[%emt 0:13:23]} Nc3 {[%emt 0:00:04]} 31. Rd4 {[%emt 0:02:15]} Re8 {[%emt 0:00:55]} 32. Rxb4 {[%emt 0:04:50]} (32. Bd3 $17 {was necessary.}) 32... Na2 {[%emt 0:00:05]} 33. Rbb1 {[%emt 0:07:14]} Nxc1 34. Rxc1 Rc7 {[%emt 0:04:23]} 35. Rd1 {[%emt 0:01:01] [#]} Rd8 $1 {[%emt 0:00:30]} 36. a5 {[%emt 0:03:09]} Kf7 {[%emt 0:02:01]} 37. a6 {[%emt 0:00:30]} Ke6 {[%emt 0:00:14]} 38. Ra1 {[%emt 0:00:38]} Ra8 {[%emt 0:00:33]} 39. Rd1 {[%emt 0:00:41]} Rb8 {[%emt 0:01:42]} 40. Ra1 {[%emt 0:00:00]} Kd6 {[%emt 0:00:00]} 41. Ba4 {[%emt 0:06:34]} Ra7 {[%emt 0:03:50]} 42. Bd1 {[%emt 0:03:08]} Rb6 {[%emt 0:00:20]} 43. c7 {[%emt 0:01:40]} Kxc7 {[%emt 0:00:04]} 44. Bf3 {[%emt 0:00:41]} Raxa6 {[%emt 0:01:15]} 45. Rd1 {[%emt 0:00:29]} Rb2+ {[%emt 0:00:06]} 46. Kg1 {[%emt 0:00:36]} Rd6 {[%emt 0:00:05]} 47. Rxd5 {[%emt 0:03:27]} Rxd5 {[%emt 0:00:05]} 48. Bxd5 {[%emt 0:00:05]} Kd6 {[%emt 0:01:50]} 49. Bg8 {[%emt 0:00:48]} Rb7 {[%emt 0:00:04]} 50. Kf2 {[%emt 0:00:04]} Kc5 {[%emt 0:00:29]} 51. Kg3 {[%emt 0:00:31]} Kd4 {[%emt 0:00:05]} 52. Kh4 {[%emt 0:00:01]} h6 {[%emt 0:00:31]} 53. Kg3 {[%emt 0:00:10]} Ke3 {[%emt 0:00:06]} 54. Bd5 {[%emt 0:00:13]} Rb4 {[%emt 0:00:52]} 55. Bf7 {[%emt 0:02:38]} g5 {[%emt 0:00:04]} 56. fxg5 {[%emt 0:00:25]} hxg5 {[%emt 0:00:01]} 57. Bd5 {[%emt 0:00:22]} f4+ {[%emt 0:00:19]} 58. Kg4 {[%emt 0:00:09]} f3+ {[%emt 0:00:03]} 59. Kg3 {[%emt 0:00:04]} f2 {[%emt 0:00:04]} 0-1

[Event "AZE-ch Men 2019"]
[Site "Baku"]
[Date "2019.01.24"]
[Round "9"]
[White "Allahverdiyeva, Ayan"]
[Black "Zeynalov, Farid"]
[Result "0-1"]
[ECO "B90"]
[WhiteElo "1975"]
[BlackElo "2344"]
[Annotator "NA"]
[PlyCount "120"]
[EventDate "2019.01.16"]
[EventType "swiss"]
[EventCountry "AZE"]
[SourceTitle "playchess.com"]
[Source "ChessBase"]
[SourceQuality "1"]
[TimeControl "40/5400+30:1800+30"]

1. e4 {[%emt 0:04:29]} c5 {[%emt 0:00:00]} 2. Nf3 {[%emt 0:00:04]} d6 {[%emt 0:00:00]} 3. d4 {[%emt 0:00:04]} cxd4 {[%emt 0:00:00]} 4. Nxd4 {[%emt 0:00:04]} Nf6 {[%emt 0:00:00]} 5. Nc3 {[%emt 0:00:13]} a6 {[%emt 0:00:00]} 6. Be3 {[%emt 0:00:54]} e5 {[%emt 0:00:00]} 7. Nb3 {[%emt 0:00:20]} Be6 {[%emt 0:00:00]} 8. f3 {[%emt 0:00:17]} Be7 {[%emt 0:00:00]} 9. Qd2 {[%emt 0:00:42]} O-O {[%emt 0:00:28]} 10. O-O-O {[%emt 0:00:05]} Nbd7 {[%emt 0:00:03]} 11. g4 {[%emt 0:00:14]} b5 {[%emt 0:00:02]} 12. g5 {[%emt 0:00:12]} b4 {[%emt 0:00:16]} 13. Ne2 $1 {[%emt 0:00:52] B90: Sicilian Najdorf: Unusual White 6th moves, 6 Be3 Ng4 and 6 Be3 e5} (13. Na4 Nh5 14. Qxb4 Bxg5 15. Bxg5 Qxg5+ 16. Kb1 Qf6 17. Qxd6 Qxf3 18. Rg1 Qe3 19. Bxa6 Nhf6 20. Rge1 Qa7 {1-0 (43) Yu,Y (2760)-Duda,J (2724) Liaocheng 2018}) 13... Nh5 {[%emt 0:01:31]} 14. Ng3 {[%emt 0:00:59]} Nf4 {[%emt 0:00:27]} 15. h4 {[%emt 0:00:47]} a5 {[%emt 0:01:18]} 16. Kb1 {[%emt 0:00:34]} a4 {[%emt 0:01:45] [#]} 17. Nd4 $1 {[%emt 0:01:46] LiveBook: 5 Games} exd4 {[%emt 0:02:14]} 18. Bxf4 {[%emt 0:00:38]} b3 {[%emt 0:00:29]} 19. cxb3 {[%emt 0:02:32]} ({But not} 19. Qxd4 bxc2+ 20. Kxc2 Bxa2 $15) 19... axb3 {[%emt 0:00:03]} 20. a3 {[%emt 0:00:17]} Qc7 {[%emt 0:09:01]} 21. Nf5 $146 {[%emt 0:04:23]} Bxf5 $1 {[%emt 0:01:11]} 22. exf5 {[%emt 0:00:14]} Qc5 {[%emt 0:07:46]} 23. f6 {[%emt 0:08:16]} gxf6 {[%emt 0:05:15]} 24. Rc1 {[%emt 0:13:13]} Qb6 {[%emt 0:04:03]} 25. gxf6 {[%emt 0:10:49]} Bxf6 {[%emt 0:00:14]} 26. Bd3 {[%emt 0:00:36]} Rfe8 {[%emt 0:18:44]} 27. Rhg1+ {[%emt 0:22:44]} Kh8 {[%emt 0:01:38]} 28. Bxh7 {[%emt 0:01:35]} Kxh7 {[%emt 0:02:43]} 29. Qd3+ {[%emt 0:00:39]} Kh8 {[%emt 0:00:05]} 30. Qf5 {[%emt 0:00:08]} Ra5 {[%emt 0:10:25]} 31. Qxd7 {[%emt 0:00:13] Double Attack} Qb5 {[%emt 0:00:09]} 32. Qxb5 {[%emt 0:13:45]} Rxb5 {[%emt 0:00:03]} 33. Rcd1 {[%emt 0:05:10]} Rf5 {[%emt 0:14:02]} 34. Bg5 {[%emt 0:01:45]} Bg7 {[%emt 0:04:55]} (34... Bxg5 $11 35. hxg5 Rf4) 35. Rd3 {[%emt 0:00:36]} Rb5 {[%emt 0:00:27]} 36. Bf4 {[%emt 0:04:26]} Re6 {[%emt 0:01:41]} 37. h5 {[%emt 0:00:05]} Kh7 {[%emt 0:02:34]} 38. h6 {[%emt 0:01:55]} Bh8 {[%emt 0:01:29]} 39. Bd2 {[%emt 0:00:28]} Re2 {[%emt 0:03:42]} 40. Kc1 {[%emt 0:00:00]} Bf6 {[%emt 0:00:00]} 41. Kd1 {[%emt 0:03:07]} Re8 {[%emt 0:10:55]} (41... Rh2 $11) 42. f4 {[%emt 0:00:58]} Ra8 {[%emt 0:06:08]} 43. Ke2 {[%emt 0:03:18]} (43. Kc1 $16) 43... Rc8 {[%emt 0:00:58]} 44. Rgg3 {[%emt 0:01:53]} Rcb8 {[%emt 0:04:17]} 45. Bb4 {[%emt 0:05:00]} (45. Kd1 $16) 45... Re8+ $16 {[%emt 0:00:18]} (45... Rh5 $14) 46. Kd2 {[%emt 0:00:22]} Bh4 {[%emt 0:02:45]} 47. Rg7+ {[%emt 0:05:38]} Kxh6 {[%emt 0:00:04]} 48. Rg1 {[%emt 0:05:35]} Bf2 {[%emt 0:06:09]} 49. Rh1+ {[%emt 0:00:16]} Rh5 {[%emt 0:00:04]} 50. Rxh5+ {[%emt 0:00:09]} Kxh5 {[%emt 0:00:02]} 51. Rxb3 {[%emt 0:00:07]} d5 {[%emt 0:04:17]} 52. Bd6 {[%emt 0:00:55]} Re6 {[%emt 0:01:10]} 53. Bb8 {[%emt 0:01:12]} Kg4 {[%emt 0:02:03]} 54. Rb5 {[%emt 0:01:18]} Kf3 {[%emt 0:00:58]} 55. Be5 {[%emt 0:02:20]} Ke4 {[%emt 0:00:41]} 56. a4 {[%emt 0:02:02]} Rc6 {[%emt 0:00:46]} 57. Rb7 {[%emt 0:02:57]} Be3+ {[%emt 0:00:16]} 58. Ke2 {[%emt 0:00:34]} d3+ {[%emt 0:00:37]} 59. Kf1 {[%emt 0:00:04]} Kf3 {[%emt 0:01:18]} 60. Bc3 {[%emt 0:00:22]} Rg6 {[%emt 0:00:07]} 0-1

[Event "AZE-ch Men 2019"]
[Site "Baku"]
[Date "2019.01.24"]
[Round "9"]
[White "Novruzov, Emin"]
[Black "Abdulov, Orkhan"]
[Result "0-1"]
[ECO "D71"]
[WhiteElo "1910"]
[BlackElo "2395"]
[Annotator "NA"]
[PlyCount "84"]
[EventDate "2019.01.16"]
[EventType "swiss"]
[EventCountry "AZE"]
[SourceTitle "playchess.com"]
[Source "ChessBase"]
[SourceQuality "1"]
[TimeControl "40/5400+30:1800+30"]

{[%evp 9,83,18,32767,10,32767,-6,32767,32767,32767,32767,32767,32767,-23,-46,-35,-45,32767,32767,32767,-37,32767,32767,-25,-53,32767,-30,-28,32767,32767,32767,-60,32767,32767,32767,32767,32767,32767,37,32767,32767,32767,0,32767,32767,32767,-27,-43,-97,-112,-79,-99,-112,-142,32767,32767,-330,32767,-352,-504,-510,-435,-555,-521,-711,32767,32767,-968,-749,-1154,-1231,-1241,32767,32767,32767,32767,-29989]} 1. d4 {[%emt 0:22:17]} Nf6 {[%emt 0:03:13]} 2. c4 {[%emt 0:02:06]} g6 {[%emt 0:00:19]} 3. g3 {[%emt 0:00:21]} Bg7 {[%emt 0:00:08]} 4. Bg2 {[%emt 0:00:19]} O-O {[%emt 0:01:36]} 5. Nc3 {[%emt 0:00:19] LiveBook: 5063 Games} d6 {[%emt 0:00:29]} 6. e4 {[%emt 0:03:39]} e5 {[%emt 0:01:47]} 7. dxe5 {[%emt 0:07:10]} dxe5 {[%emt 0:00:42]} 8. Qxd8 {[%emt 0:00:09] E72: King's Indian: 4 e4 d6 5 g3} (8. Bg5 c6 9. Nf3 Qe7 10. Qc1 Nbd7 11. O-O Nc5 12. Rd1 Qe6 13. Qe3 Ncd7 14. Qe2 Re8 15. h3 Bf8 {½-½ (33) Pedersen,F (2310)-Petersen,T (2323) Denmark 2013}) 8... Rxd8 {[%emt 0:00:02]} 9. Bg5 {[%emt 0:00:08]} c6 {[%emt 0:01:36]} 10. Nf3 {[%emt 0:01:57]} h6 {[%emt 0:00:45]} 11. Bd2 {[%emt 0:00:56]} Nbd7 $146 {[%emt 0:15:17]} ({Predecessor:} 11... Na6 12. Ke2 Nc5 13. Ne1 Be6 14. b3 Ng4 15. Rd1 f5 {½-½ (38) Stanojevic,D-Dimitrijevic,D Serbia 2011}) 12. O-O-O {[%emt 0:05:42]} Ng4 {[%emt 0:03:25]} 13. Be1 {[%emt 0:00:58]} Re8 {[%emt 0:00:56]} 14. h3 {[%emt 0:09:50]} Ngf6 {[%emt 0:00:08]} 15. Nd2 {[%emt 0:03:53]} Nc5 {[%emt 0:04:20]} 16. Kc2 {[%emt 0:00:13]} a5 {[%emt 0:01:35]} 17. Nb3 {[%emt 0:02:27]} Nfd7 {[%emt 0:07:23]} 18. f3 {[%emt 0:02:26]} Ne6 {[%emt 0:08:01]} 19. a4 {[%emt 0:06:59]} Nd4+ {[%emt 0:02:10]} 20. Nxd4 {[%emt 0:00:47]} exd4 {[%emt 0:00:03]} 21. Ne2 {[%emt 0:02:16]} c5 {[%emt 0:00:58]} 22. Nf4 {[%emt 0:04:16]} Nf6 {[%emt 0:12:09]} 23. b3 {[%emt 0:02:33]} b6 {[%emt 0:06:15]} 24. Bf2 {[%emt 0:01:32]} Bb7 {[%emt 0:01:51]} 25. Rhe1 {[%emt 0:00:27]} g5 {[%emt 0:00:18]} 26. Nd5 {[%emt 0:00:56]} Nxd5 {[%emt 0:03:52]} 27. cxd5 {[%emt 0:05:49] [#]} f5 $1 {[%emt 0:03:26]} 28. g4 {[%emt 0:04:30]} (28. f4 $1 $11 {remains equal.}) 28... fxe4 {[%emt 0:01:00]} 29. fxe4 {[%emt 0:00:13]} Be5 {[%emt 0:00:06]} 30. Rh1 {[%emt 0:03:32]} Rf8 {[%emt 0:01:03]} 31. Be1 {[%emt 0:01:39]} Ba6 {[%emt 0:00:31]} 32. Rd2 {[%emt 0:01:40]} (32. h4 {keeps fighting.} Be2 33. Rd2 Bxg4 34. hxg5) 32... b5 {[%emt 0:01:24]} 33. Bf1 {[%emt 0:02:28]} bxa4 {[%emt 0:01:24]} 34. Bxa6 {[%emt 0:00:07]} Rxa6 {[%emt 0:00:03]} 35. bxa4 {[%emt 0:01:31]} c4 {[%emt 0:00:17]} 36. Rf2 {[%emt 0:00:46]} Rb8 {[%emt 0:03:00]} 37. Rf5 {[%emt 0:00:37]} d3+ {[%emt 0:00:13]} 38. Kd2 {[%emt 0:00:17]} Bd4 {[%emt 0:01:17]} 39. d6 {[%emt 0:00:41]} Rxd6 {[%emt 0:00:58]} 40. Rxa5 {[%emt 0:00:00]} Rb2+ {[%emt 0:00:00]} 41. Kc1 {[%emt 0:01:12]} c3 {[%emt 0:00:53]} 42. Ra8+ {[%emt 0:02:43]} Kh7 {[%emt 0:00:41]} 0-1